fUST/lending_fUST_20241018
["ID","MTS","AMOUNT","RATE_DAILY","PERIOD"]
[340440812,1729245084702,-500.0,0.00014794,2]
[340440813,1729245084712,-500.0,0.00014794,2]
[340440814,1729245084721,-351.27660386,0.00014794,2]
[340440815,1729245084731,-1000.0,0.00014794,2]
[340440816,1729245084740,-500.0,0.00014794,2]
[340440817,1729245084750,-500.0,0.00014794,2]
[340440818,1729245084759,-738.95,0.00014794,2]
[340440819,1729245084769,-1000.56,0.00014794,2]
[340440820,1729245084780,-500.0,0.00014794,2]
[340440821,1729245084790,-500.0,0.00014794,2]
[340440822,1729245084800,-1096.22,0.00014794,2]
[340440823,1729245084809,-500.0,0.00014794,2]
[340440824,1729245084820,-500.0,0.00014794,2]
[340440825,1729245084830,-1069.71,0.00014794,2]
[340440826,1729245084839,-1397.58,0.00014794,2]
[340440827,1729245084849,-500.0,0.00014794,2]
[340440828,1729245084858,-500.0,0.00014794,2]
[340440829,1729245084868,-500.0,0.00014794,2]
[340440830,1729245084878,-1428.87,0.00014794,2]
[340440831,1729245084887,-527.34567304,0.00014794,2]
[340440832,1729245084897,-198.64310971,0.00014794,2]
[340440833,1729245084906,-500.0,0.00014794,2]
[340440834,1729245084916,-895.03,0.00014794,2]
[340440835,1729245084925,-500.0,0.00014794,2]
[340440836,1729245084935,-3993.05,0.00014794,2]
[340440837,1729245084945,-500.0,0.00014794,2]
[340440838,1729245084956,-500.0,0.00014794,2]
[340440839,1729245084967,-500.0,0.00014794,2]
[340440840,1729245084976,-1157.15,0.00014794,2]
[340440841,1729245084986,-500.0,0.00014794,2]
[340440842,1729245084995,-500.0,0.00014794,2]
[340440843,1729245085005,-500.0,0.00014794,2]
[340440844,1729245085014,-500.0,0.00014794,2]
[340440845,1729245085024,-532.6,0.00014794,2]
[340440846,1729245085034,-1870.26,0.00014794,2]
[340440847,1729245085045,-866.7,0.00014794,2]
[340440848,1729245085054,-500.0,0.00014794,2]
[340440849,1729245085064,-730.02,0.00014794,2]
[340440850,1729245085073,-896.36,0.00014794,2]
[340440851,1729245085083,-500.0,0.00014794,2]
[340440852,1729245085092,-270.05294998,0.00014794,2]
[340440853,1729245085102,-500.0,0.00014794,2]
[340440854,1729245085111,-973.26,0.00014794,2]
[340440855,1729245085120,-654.42,0.00014794,2]
[340440856,1729245085130,-562.62,0.00014794,2]
[340440857,1729245085140,-512.47104944,0.00014794,2]
[340440858,1729245085150,-431.8957358,0.00014794,2]
[340440859,1729245085159,-3473.75,0.00014794,2]
[340440860,1729245085169,-500.0,0.00014794,2]
[340440861,1729245085178,-500.0,0.00014794,2]
[340440862,1729245085187,-500.0,0.00014794,2]
[340440863,1729245085197,-500.0,0.00014794,2]
[340440864,1729245085206,-1013.32,0.00014794,2]
[340440865,1729245085215,-606.12422212,0.00014794,2]
[340440866,1729245085225,-884.31,0.00014794,2]
[340440867,1729245085235,-500.0,0.00014794,2]
[340440868,1729245085244,-663.59,0.00014794,2]
[340440869,1729245085253,-1044.47,0.00014794,2]
[340440870,1729245085263,-500.0,0.00014794,2]
[340440871,1729245085272,-500.0,0.00014794,2]
[340440872,1729245085282,-500.0,0.00014794,2]
[340440873,1729245085292,-1124.46,0.00014794,2]
[340440874,1729245085302,-367.20201907,0.00014794,2]
[340440875,1729245085311,-500.0,0.00014794,2]
[340440876,1729245085320,-500.0,0.00014794,2]
[340440877,1729245085330,-500.0,0.00014794,2]
[340440878,1729245085340,-681.61,0.00014794,2]
[340440879,1729245085349,-1167.43,0.00014794,2]
[340440880,1729245085360,-545.95131695,0.00014794,2]
[340440881,1729245085371,-500.0,0.00014794,2]
[340440882,1729245085382,-500.0,0.00014794,2]
[340440883,1729245085391,-1087.29,0.00014794,2]
[340440884,1729245085401,-500.0,0.00014794,2]
[340440885,1729245085410,-500.0,0.00014794,2]
[340440886,1729245085420,-765.82,0.00014794,2]
[340440887,1729245085429,-767.62,0.00014794,2]
[340440888,1729245085438,-500.0,0.00014794,2]
[340440889,1729245085448,-500.0,0.00014794,2]
[340440890,1729245085457,-1280.97,0.00014794,2]
[340440891,1729245085467,-500.0,0.00014794,2]
[340440892,1729245085476,-500.0,0.00014794,2]
[340440893,1729245085486,-500.0,0.00014794,2]
[340440894,1729245085495,-500.0,0.00014794,2]
[340440895,1729245085504,-1114.77,0.00014794,2]
[340440896,1729245085514,-500.0,0.00014794,2]
[340440897,1729245085524,-1426.78,0.00014794,2]
[340440898,1729245085534,-500.0,0.00014794,2]
[340440899,1729245085543,-500.0,0.00014794,2]
[340440900,1729245085552,-500.0,0.00014794,2]
[340440901,1729245085561,-767.47,0.00014794,2]
[340440902,1729245085571,-500.0,0.00014794,2]
[340440903,1729245085581,-500.0,0.00014794,2]
[340440904,1729245085590,-500.0,0.00014794,2]
[340440905,1729245085600,-500.0,0.00014794,2]
[340440906,1729245085610,-1411.42,0.00014794,2]
[340440907,1729245085619,-500.0,0.00014794,2]
[340440908,1729245085629,-500.0,0.00014794,2]
[340440909,1729245085639,-545.45,0.00014794,2]
[340440910,1729245085648,-500.0,0.00014794,2]
[340440911,1729245085657,-500.0,0.00014794,2]
[340440912,1729245085667,-788.01,0.00014794,2]
[340440913,1729245085677,-500.0,0.00014794,2]
[340440914,1729245085686,-525.34611679,0.00014794,2]
[340440915,1729245085696,-500.0,0.00014794,2]
[340440916,1729245085706,-500.0,0.00014794,2]
[340440917,1729245085715,-2395.03,0.00014794,2]
[340440918,1729245085724,-500.0,0.00014794,2]
[340440919,1729245085734,-1150.17,0.00014794,2]
[340440920,1729245085743,-500.0,0.00014794,2]
[340440921,1729245085753,-536.26,0.00014794,2]
[340440922,1729245085763,-558.2353397,0.00014794,2]
[340440923,1729245085772,-500.0,0.00014794,2]
[340440924,1729245085782,-500.0,0.00014794,2]
[340440925,1729245085791,-500.0,0.00014794,2]
[340440926,1729245085801,-500.0,0.00014794,2]
[340440927,1729245085810,-500.0,0.00014794,2]
[340440928,1729245085819,-500.0,0.00014794,2]
[340440929,1729245085828,-500.0,0.00014794,2]
[340440930,1729245085839,-1909.08,0.00014794,2]
[340440931,1729245085848,-2396.15,0.00014794,2]
[340440932,1729245085858,-856.8,0.00014794,2]
[340440933,1729245085867,-201.48553485,0.00014794,2]
[340440934,1729245085876,-500.0,0.00014794,2]
[340440935,1729245085885,-500.0,0.00014794,2]
[340440936,1729245085894,-500.0,0.00014794,2]
[340440937,1729245085903,-500.0,0.00014794,2]
[340440938,1729245085913,-500.0,0.00014794,2]
[340440939,1729245085922,-500.0,0.00014794,2]
[340440940,1729245085931,-500.0,0.00014794,2]
[340440941,1729245085941,-500.0,0.00014794,2]
[340440942,1729245085950,-500.0,0.00014794,2]
[340440943,1729245085963,-500.0,0.00014794,2]
[340440944,1729245085974,-500.0,0.00014794,2]
[340440945,1729245085983,-837.39,0.00014794,2]
[340440946,1729245085993,-1324.5,0.00014794,2]
[340440947,1729245086002,-500.0,0.00014794,2]
[340440948,1729245086011,-500.0,0.00014794,2]
[340440949,1729245086020,-500.0,0.00014794,2]
[340440950,1729245086029,-500.0,0.00014794,2]
[340440951,1729245086039,-1031.32,0.00014794,2]
[340440952,1729245086050,-500.0,0.00014794,2]
[340440953,1729245086059,-500.0,0.00014794,2]
[340440954,1729245086068,-500.0,0.00014794,2]
[340440955,1729245086078,-2844.57,0.00014794,2]
[340440956,1729245086087,-500.0,0.00014794,2]
[340440957,1729245086098,-969.83,0.00014794,2]
[340440958,1729245086107,-603.41,0.00014794,2]
[340440959,1729245086117,-296.25441978,0.00014794,2]
[340440960,1729245086127,-500.0,0.00014794,2]
[340440961,1729245086136,-2511.79,0.00014794,2]
[340440962,1729245086145,-2957.21,0.00014794,2]
[340440963,1729245086154,-217.64209132,0.00014794,2]
[340440964,1729245086164,-500.0,0.00014794,2]
[340440965,1729245086173,-500.0,0.00014794,2]
[340440966,1729245086182,-825.51,0.00014794,2]
[340440967,1729245086191,-500.0,0.00014794,2]
[340440968,1729245086200,-1311.74,0.00014794,2]
[340440969,1729245086209,-500.0,0.00014794,2]
[340440970,1729245086219,-1111.47,0.00014794,2]
[340440971,1729245086228,-500.0,0.00014794,2]
[340440972,1729245086237,-2679.77,0.00014794,2]
[340440973,1729245086246,-500.0,0.00014794,2]
[340440974,1729245086255,-515.09732982,0.00014794,2]
[340440975,1729245086266,-500.0,0.00014794,2]
[340440976,1729245086275,-1031.42,0.00014794,2]
[340440977,1729245086285,-500.0,0.00014794,2]
[340440978,1729245086294,-500.0,0.00014794,2]
[340440979,1729245086304,-12162.79,0.00014794,2]
[340440980,1729245086314,-500.0,0.00014794,2]
[340440981,1729245086323,-550.29,0.00014794,2]
[340440982,1729245086333,-930.26,0.00014794,2]
[340440983,1729245086342,-1897.2,0.00014794,2]
[340440984,1729245086352,-500.0,0.00014794,2]
[340440985,1729245086362,-500.0,0.00014794,2]
[340440986,1729245086370,-500.0,0.00014794,2]
[340440987,1729245086380,-878.22,0.00014794,2]
[340440988,1729245086389,-957.88,0.00014794,2]
[340440989,1729245086399,-279.60092665,0.00014794,2]
[340440990,1729245086407,-500.0,0.00014794,2]
[340440991,1729245086417,-927.39,0.00014794,2]
[340440992,1729245086426,-937.09,0.00014794,2]
[340440993,1729245086435,-500.0,0.00014794,2]
[340440994,1729245086445,-1899.07,0.00014794,2]
[340440995,1729245086454,-500.0,0.00014794,2]
[340440996,1729245086464,-500.0,0.00014794,2]
[340440997,1729245086474,-1019.75,0.00014794,2]
[340440998,1729245086483,-500.0,0.00014794,2]
[340440999,1729245086492,-500.0,0.00014794,2]
[340441000,1729245086502,-508.26339969,0.00014794,2]
[340441001,1729245086511,-1189.31,0.00014794,2]
[340441002,1729245086521,-1270.25,0.00014794,2]
[340441003,1729245086530,-500.0,0.00014794,2]
[340441004,1729245086541,-1139.43,0.00014794,2]
[340441005,1729245086550,-2950.09,0.00014794,2]
[340441006,1729245086559,-500.0,0.00014794,2]
[340441007,1729245086568,-500.0,0.00014794,2]
[340441008,1729245086578,-6008.62,0.00014794,2]
[340441009,1729245086587,-500.0,0.00014794,2]
[340441010,1729245086596,-500.0,0.00014794,2]
[340441011,1729245086606,-733.35,0.00014794,2]
[340441012,1729245086615,-2190.69,0.00014794,2]
[340441013,1729245086624,-500.0,0.00014794,2]
[340441014,1729245086634,-500.0,0.00014794,2]
[340441015,1729245086644,-477.3894594,0.00014794,2]
[340441016,1729245086654,-500.0,0.00014794,2]
[340441017,1729245086664,-878.59,0.00014794,2]
[340441018,1729245086673,-825.29,0.00014794,2]
[340441019,1729245086683,-500.0,0.00014794,2]
[340441020,1729245086692,-1028.34,0.00014794,2]
[340441021,1729245086701,-500.0,0.00014794,2]
[340441022,1729245086711,-1201.91,0.00014794,2]
[340441023,1729245086721,-500.0,0.00014794,2]
[340441024,1729245086731,-500.0,0.00014794,2]
[340441025,1729245086740,-500.0,0.00014794,2]
[340441026,1729245086749,-1749.48,0.00014794,2]
[340441027,1729245086759,-500.0,0.00014794,2]
[340441028,1729245086768,-966.84,0.00014794,2]
[340441029,1729245086778,-500.0,0.00014794,2]
[340441030,1729245086787,-343.46505169,0.00014794,2]
[340441031,1729245086796,-881.76,0.00014794,2]
[340441032,1729245086806,-500.0,0.00014794,2]
[340441033,1729245086815,-1769.45,0.00014794,2]
[340441034,1729245086824,-500.0,0.00014794,2]
[340441035,1729245086834,-500.0,0.00014794,2]
[340441036,1729245086843,-2105.24,0.00014794,2]
[340441037,1729245086853,-1860.09,0.00014794,2]
[340441038,1729245086863,-1152.94,0.00014794,2]
[340441039,1729245086872,-353.06598646,0.00014794,2]
[340441040,1729245086882,-1255.91,0.00014794,2]
[340441041,1729245086891,-500.0,0.00014794,2]
[340441042,1729245086901,-1691.98,0.00014794,2]
[340441043,1729245086911,-500.0,0.00014794,2]
[340441044,1729245086921,-500.0,0.00014794,2]
[340441045,1729245086930,-1098.67,0.00014794,2]
[340441046,1729245086939,-1725.58,0.00014794,2]
[340441047,1729245086948,-500.0,0.00014794,2]
[340441048,1729245086961,-500.0,0.00014794,2]
[340441049,1729245086971,-500.0,0.00014794,2]
[340441050,1729245086980,-1142.96,0.00014794,2]
[340441051,1729245086989,-500.0,0.00014794,2]
[340441052,1729245086999,-500.0,0.00014794,2]
[340441053,1729245087010,-1239.72,0.00014794,2]
[340441054,1729245087019,-500.0,0.00014794,2]
[340441055,1729245087029,-915.71,0.00014794,2]
[340441056,1729245087040,-500.0,0.00014794,2]
[340441057,1729245087049,-1461.93,0.00014794,2]
[340441058,1729245087059,-500.0,0.00014794,2]
[340441059,1729245087068,-2139.87,0.00014794,2]
[340441060,1729245087078,-1360.3,0.00014794,2]
[340441061,1729245087087,-500.0,0.00014794,2]
[340441062,1729245087096,-500.0,0.00014794,2]
[340441063,1729245087106,-1004.65,0.00014794,2]
[340441064,1729245087115,-500.0,0.00014794,2]
[340441065,1729245087125,-500.0,0.00014794,2]
[340441066,1729245087134,-814.29,0.00014794,2]
[340441067,1729245087143,-465.44192312,0.00014794,2]
[340441068,1729245087153,-500.0,0.00014794,2]
[340441069,1729245087162,-500.0,0.00014794,2]
[340441070,1729245087172,-500.0,0.00014794,2]
[340441071,1729245087182,-1014.14,0.00014794,2]
[340441072,1729245087327,-500.0,0.00014794,2]
[340441073,1729245087351,-10684.06,0.00014794,2]
[340441074,1729245087360,-500.0,0.00014794,2]
[340441075,1729245087370,-2848.42,0.00014794,2]
[340441076,1729245087379,-9831.04,0.00014794,2]
[340441077,1729245087389,-500.0,0.00014794,2]
[340441078,1729245087399,-500.0,0.00014794,2]
[340441079,1729245087409,-500.0,0.00014794,2]
[340441080,1729245087419,-500.0,0.00014794,2]
[340441081,1729245087428,-500.0,0.00014794,2]
[340441082,1729245087437,-500.0,0.00014794,2]
[340441083,1729245087447,-1297.67,0.00014794,2]
[340441084,1729245087456,-1132.53,0.00014794,2]
[340441085,1729245087466,-632.25165818,0.00014794,2]
[340441086,1729245087475,-1817.3,0.00014794,2]
[340441087,1729245087484,-500.0,0.00014794,2]
[340441088,1729245087494,-500.0,0.00014794,2]
[340441089,1729245087503,-2100.8,0.00014794,2]
[340441090,1729245087513,-500.0,0.00014794,2]
[340441091,1729245087522,-846.3,0.00014794,2]
[340441092,1729245087532,-500.0,0.00014794,2]
[340441093,1729245087541,-500.0,0.00014794,2]
[340441094,1729245087551,-879.74,0.00014794,2]
[340441095,1729245087560,-500.0,0.00014794,2]
[340441096,1729245087569,-1320.86,0.00014794,2]
[340441097,1729245087579,-500.0,0.00014794,2]
[340441098,1729245087589,-500.0,0.00014794,2]
[340441099,1729245087598,-500.0,0.00014794,2]
[340441100,1729245087608,-1019.81,0.00014794,2]
[340441101,1729245087618,-500.0,0.00014794,2]
[340441102,1729245087627,-840.9,0.00014794,2]
[340441103,1729245087636,-500.0,0.00014794,2]
[340441104,1729245087646,-500.0,0.00014794,2]
[340441105,1729245087656,-500.0,0.00014794,2]
[340441106,1729245087665,-534.68,0.00014794,2]
[340441107,1729245087675,-1568.55,0.00014794,2]
[340441108,1729245087685,-500.0,0.00014794,2]
[340441109,1729245087694,-849.66,0.00014794,2]
[340441110,1729245087704,-500.0,0.00014794,2]
[340441111,1729245087715,-500.0,0.00014794,2]
[340441112,1729245087724,-527.33836018,0.00014794,2]
[340441113,1729245087734,-500.0,0.00014794,2]
[340441114,1729245087744,-500.0,0.00014794,2]
[340441115,1729245087754,-500.0,0.00014794,2]
[340441116,1729245087763,-1763.86,0.00014794,2]
[340441117,1729245087773,-636.18,0.00014794,2]
[340441118,1729245087782,-500.0,0.00014794,2]
[340441119,1729245087792,-515.94027315,0.00014794,2]
[340441120,1729245087801,-554.66,0.00014794,2]
[340441121,1729245087811,-1104.89,0.00014794,2]
[340441122,1729245087820,-71991.77,0.00014794,2]
[340441123,1729245087830,-500.0,0.00014794,2]
[340441124,1729245087840,-500.0,0.00014794,2]
[340441125,1729245087849,-500.0,0.00014794,2]
[340441126,1729245087859,-500.0,0.00014794,2]
[340441127,1729245087868,-500.0,0.00014794,2]
[340441128,1729245087877,-500.0,0.00014794,2]
[340441129,1729245087887,-1069.99,0.00014794,2]
[340441130,1729245087896,-500.0,0.00014794,2]
[340441131,1729245087905,-461.21255348,0.00014794,2]
[340441132,1729245087914,-8143.49,0.00014794,2]
[340441133,1729245087923,-507.68,0.00014794,2]
[340441134,1729245087932,-636.94698786,0.00014794,2]
[340441135,1729245087941,-657.05,0.00014794,2]
[340441136,1729245087951,-922.11,0.00014794,2]
[340441137,1729245087959,-511.07289025,0.00014794,2]
[340441138,1729245087971,-500.0,0.00014794,2]
[340441139,1729245087980,-1177.72,0.00014794,2]
[340441140,1729245087989,-500.0,0.00014794,2]
[340441141,1729245087998,-500.0,0.00014794,2]
[340441142,1729245088007,-500.0,0.00014794,2]
[340441143,1729245088017,-558.29,0.00014794,2]
[340441144,1729245088026,-500.0,0.00014794,2]
[340441145,1729245088035,-1098.87,0.00014794,2]
[340441146,1729245088044,-500.0,0.00014794,2]
[340441147,1729245088054,-939.41,0.00014794,2]
[340441148,1729245088064,-500.0,0.00014794,2]
[340441149,1729245088072,-1215.85,0.00014794,2]
[340441150,1729245088082,-1116.8,0.00014794,2]
[340441151,1729245088091,-500.0,0.00014794,2]
[340441152,1729245088100,-1144.65,0.00014794,2]
[340441153,1729245088110,-515.30511356,0.00014794,2]
[340441154,1729245088119,-500.0,0.00014794,2]
[340441155,1729245088128,-945.11,0.00014794,2]
[340441156,1729245088137,-898.62,0.00014794,2]
[340441157,1729245088146,-500.0,0.00014794,2]
[340441158,1729245088155,-500.0,0.00014794,2]
[340441159,1729245088164,-892.4,0.00014794,2]
[340441160,1729245088174,-500.0,0.00014794,2]
[340441161,1729245088183,-500.0,0.00014794,2]
[340441162,1729245088192,-500.0,0.00014794,2]
[340441163,1729245088202,-500.0,0.00014794,2]
[340441164,1729245088211,-1156.23,0.00014794,2]
[340441165,1729245088220,-500.0,0.00014794,2]
[340441166,1729245088229,-500.0,0.00014794,2]
[340441167,1729245088238,-424.23428426,0.000149,2]
[340441168,1729245088248,-424.23428425,0.000149,2]
[340441169,1729245088257,-424.23428425,0.000149,2]
[340441170,1729245088266,-267.1202562,0.00015,2]
[340441171,1729245088275,-400.0,0.00015,3]
[340441172,1729245088284,-1124.36892979,0.00015,2]
[340441173,1729245088293,-174275.20139585,0.00015,3]
[340441174,1729245088303,-13612.309682,0.00015068,2]
[340441175,1729245088312,-300.0,0.000153,5]
[340441176,1729245088321,-500.0,0.00015342,2]
[340441177,1729245088331,-510.13448441,0.00015342,2]
[340441178,1729245088340,-500.0,0.00015342,2]
[340441179,1729245088349,-514.65656024,0.00015342,2]
[340441180,1729245088358,-508.44499842,0.00015342,2]
[340441181,1729245088367,-598.59086981,0.00015342,2]
[340441182,1729245088376,-294.56576994,0.00015342,2]
[340441183,1729245088385,-500.0,0.00015342,2]
[340441184,1729245088394,-500.0,0.00015342,2]
[340441185,1729245088403,-500.0,0.00015342,2]
[340441186,1729245088412,-500.0,0.00015342,2]
[340441187,1729245088420,-500.0,0.00015342,2]
[340441188,1729245088429,-500.0,0.00015342,2]
[340441189,1729245088438,-500.0,0.00015342,2]
[340441190,1729245088448,-500.0,0.00015342,2]
[340441191,1729245088457,-2919.28,0.00015342,2]
[340441192,1729245088466,-500.0,0.00015342,2]
[340441193,1729245088475,-500.0,0.00015342,2]
[340441194,1729245088484,-500.0,0.00015342,2]
[340441195,1729245088493,-500.0,0.00015342,2]
[340441196,1729245088502,-500.0,0.00015342,2]
[340441197,1729245088511,-500.0,0.00015342,2]
[340441198,1729245088520,-1214.85,0.00015342,2]
[340441199,1729245088530,-896.05,0.00015342,2]
[340441200,1729245088540,-500.0,0.00015342,2]
[340441201,1729245088549,-637.02810349,0.00015342,2]
[340441202,1729245088558,-500.0,0.00015342,2]
[340441203,1729245088568,-1925.95,0.00015342,2]
[340441204,1729245088577,-500.0,0.00015342,2]
[340441205,1729245088586,-500.0,0.00015342,2]
[340441206,1729245088595,-572.8125794,0.00015342,2]
[340441207,1729245088604,-500.0,0.00015342,2]
[340441208,1729245088613,-526.62472835,0.00015342,2]
[340441209,1729245088622,-500.0,0.00015342,2]
[340441210,1729245088631,-1100.96,0.00015342,2]
[340441211,1729245088641,-500.0,0.00015342,2]
[340441212,1729245088650,-500.0,0.00015342,2]
[340441213,1729245088659,-500.0,0.00015342,2]
[340441214,1729245088668,-500.0,0.00015342,2]
[340441215,1729245088677,-1112.06,0.00015342,2]
[340441216,1729245088687,-193.68551088,0.00015342,2]
[340441217,1729245088697,-500.0,0.00015342,2]
[340441218,1729245088706,-942.61,0.00015342,2]
[340441219,1729245088715,-500.0,0.00015342,2]
[340441220,1729245088725,-694.02,0.00015342,2]
[340441221,1729245088734,-500.0,0.00015342,2]
[340441222,1729245088744,-500.0,0.00015342,2]
[340441223,1729245088753,-1028.28,0.00015342,2]
[340441224,1729245088762,-500.0,0.00015342,2]
[340441225,1729245088771,-500.0,0.00015342,2]
[340441226,1729245088781,-500.0,0.00015342,2]
[340441227,1729245088790,-500.0,0.00015342,2]
[340441228,1729245088800,-500.0,0.00015342,2]
[340441229,1729245088809,-500.0,0.00015342,2]
[340441230,1729245088818,-500.0,0.00015342,2]
[340441231,1729245088828,-500.0,0.00015342,2]
[340441232,1729245088837,-500.0,0.00015342,2]
[340441233,1729245088846,-509.1471773,0.00015342,2]
[340441234,1729245088855,-500.0,0.00015342,2]
[340441235,1729245088865,-500.0,0.00015342,2]
[340441236,1729245088874,-500.0,0.00015342,2]
[340441237,1729245088883,-1032.9,0.00015342,2]
[340441238,1729245088893,-500.0,0.00015342,2]
[340441239,1729245088903,-500.0,0.00015342,2]
[340441240,1729245088912,-1307.02,0.00015342,2]
[340441241,1729245088922,-500.0,0.00015342,2]
[340441242,1729245088931,-500.0,0.00015342,2]
[340441243,1729245088941,-500.0,0.00015342,2]
[340441244,1729245088951,-500.0,0.00015342,2]
[340441245,1729245088960,-500.0,0.00015342,2]
[340441246,1729245088969,-1007.91,0.00015342,2]
[340441247,1729245088982,-719.96,0.00015342,2]
[340441248,1729245088991,-872.66,0.00015342,2]
[340441249,1729245089001,-500.0,0.00015342,2]
[340441250,1729245089010,-500.0,0.00015342,2]
[340441251,1729245089022,-915.43,0.00015342,2]
[340441252,1729245089031,-500.0,0.00015342,2]
[340441253,1729245089041,-500.0,0.00015342,2]
[340441254,1729245089051,-1054.91,0.00015342,2]
[340441255,1729245089066,-500.0,0.00015342,2]
[340441256,1729245089076,-500.0,0.00015342,2]
[340441257,1729245089085,-500.0,0.00015342,2]
[340441258,1729245089095,-162.09323683,0.00015342,2]
[340441259,1729245089107,-500.0,0.00015342,2]
[340441260,1729245089117,-500.0,0.00015342,2]
[340441261,1729245089126,-500.0,0.00015342,2]
[340441262,1729245089139,-531.47,0.00015342,2]
[340441263,1729245089148,-500.0,0.00015342,2]
[340441264,1729245089158,-546.54604986,0.00015342,2]
[340441265,1729245089167,-500.0,0.00015342,2]
[340441266,1729245089178,-1046.71,0.00015342,2]
[340441267,1729245089187,-1013.1,0.00015342,2]
[340441268,1729245089197,-500.0,0.00015342,2]
[340441269,1729245089205,-507.16772529,0.00015342,2]
[340441270,1729245089214,-500.0,0.00015342,2]
[340441271,1729245089224,-500.0,0.00015342,2]
[340441272,1729245089233,-1107.34,0.00015342,2]
[340441273,1729245089242,-500.0,0.00015342,2]
[340441274,1729245089251,-1014.96,0.00015342,2]
[340441275,1729245089260,-500.0,0.00015342,2]
[340441276,1729245089270,-504.57328653,0.00015342,2]
[340441277,1729245089279,-779.88,0.00015342,2]
[340441278,1729245089288,-500.0,0.00015342,2]
[340441279,1729245089297,-196.17556299,0.00015342,2]
[340441280,1729245089306,-533.89703226,0.00015342,2]
[340441281,1729245089315,-500.0,0.00015342,2]
[340441282,1729245089325,-675.89,0.00015342,2]
[340441283,1729245089334,-1425.42,0.00015342,2]
[340441284,1729245089344,-500.0,0.00015342,2]
[340441285,1729245089353,-500.0,0.00015342,2]
[340441286,1729245089362,-500.0,0.00015342,2]
[340441287,1729245089372,-500.0,0.00015342,2]
[340441288,1729245089382,-858.13,0.00015342,2]
[340441289,1729245089391,-500.0,0.00015342,2]
[340441290,1729245089401,-741.88,0.00015342,2]
[340441291,1729245089411,-500.0,0.00015342,2]
[340441292,1729245089421,-1003.38,0.00015342,2]
[340441293,1729245089430,-1103.55,0.00015342,2]
[340441294,1729245089440,-489.86830787,0.00015342,2]
[340441295,1729245089449,-500.0,0.00015342,2]
[340441296,1729245089459,-502.43252551,0.00015342,2]
[340441297,1729245089469,-500.0,0.00015342,2]
[340441298,1729245089479,-500.0,0.00015342,2]
[340441299,1729245089489,-500.0,0.00015342,2]
[340441300,1729245089498,-500.0,0.00015342,2]
[340441301,1729245089507,-638.99,0.00015342,2]
[340441302,1729245089517,-500.0,0.00015342,2]
[340441303,1729245089526,-515.49272419,0.00015342,2]
[340441304,1729245089535,-500.0,0.00015342,2]
[340441305,1729245089544,-620.45,0.00015342,2]
[340441306,1729245089553,-679.66,0.00015342,2]
[340441307,1729245089563,-500.0,0.00015342,2]
[340441308,1729245089573,-500.0,0.00015342,2]
[340441309,1729245089583,-1907.3,0.00015342,2]
[340441310,1729245089592,-500.0,0.00015342,2]
[340441311,1729245089602,-871.12,0.00015342,2]